fUSD/lending_fUSD_20251017
["ID","MTS","AMOUNT","RATE_DAILY","PERIOD"]
[391608565,1760699458759,-190.719475,0.00023527,7]
[391608566,1760699458771,-157.043092,0.00023527,7]
[391608567,1760699458782,-151.0,0.00023527,7]
[391608568,1760699458792,-2810.293979,0.00023527,7]
[391608569,1760699458804,-2810.293979,0.00023527,7]
[391608570,1760699458815,-151.0,0.00023527,7]
[391608571,1760699458825,-151.0,0.00023527,7]
[391608572,1760699458837,-10508.868613,0.00023527,7]
[391608573,1760699458848,-151.0,0.00023527,7]
[391608574,1760699458859,-151.0,0.00023527,7]
[391608575,1760699458870,-10508.868613,0.00023527,7]
[391608576,1760699458881,-173.857067,0.00023527,7]
[391608577,1760699458892,-253.367917,0.00023527,7]
[391608578,1760699458903,-151.0,0.00023527,7]
[391608579,1760699458918,-10508.868613,0.00023527,7]
[391608580,1760699458930,-580.017093,0.00023527,7]
[391608581,1760699458941,-173.857067,0.00023527,7]
[391608582,1760699458952,-253.367917,0.00023527,7]
[391608583,1760699458964,-10508.868613,0.00023527,7]
[391608584,1760699458975,-151.0,0.00023527,7]
[391608585,1760699458988,-604.578375,0.00023527,7]
[391608586,1760699459000,-580.017093,0.00023527,7]
[391608587,1760699459016,-173.857067,0.00023527,7]
[391608588,1760699459028,-253.367917,0.00023527,7]
[391608589,1760699459039,-543.373005,0.00023527,7]
[391608590,1760699459050,-580.017093,0.00023527,7]
[391608591,1760699459061,-604.578375,0.00023527,7]
[391608592,1760699459072,-173.857067,0.00023527,7]
[391608593,1760699459091,-253.367917,0.00023527,7]
[391608594,1760699459103,-151.0,0.00023527,7]
[391608595,1760699459114,-543.373005,0.00023527,7]
[391608596,1760699459125,-151.0,0.00023527,7]
[391608597,1760699459135,-604.578375,0.00023527,7]
[391608598,1760699459146,-580.017093,0.00023527,7]
[391608599,1760699459157,-151.0,0.00023527,7]
[391608600,1760699459172,-151.0,0.00023527,7]
[391608601,1760699459183,-543.373005,0.00023527,7]
[391608602,1760699459194,-151.0,0.00023527,7]
[391608603,1760699459205,-604.578375,0.00023527,7]
[391608604,1760699459216,-1102.399118,0.00023527,7]
[391608605,1760699459227,-151.0,0.00023527,7]
[391608606,1760699459238,-151.0,0.00023527,7]
[391608607,1760699459249,-543.373005,0.00023527,7]
[391608608,1760699459262,-421.80963,0.00023527,7]
[391608609,1760699459272,-232.163052,0.00023527,7]
[391608610,1760699459283,-151.0,0.00023527,7]
[391608611,1760699459294,-421.80963,0.00023527,7]
[391608612,1760699459305,-151.0,0.00023527,7]
[391608613,1760699459315,-1102.399118,0.00023527,7]
[391608614,1760699459326,-151.0,0.00023527,7]
[391608615,1760699459341,-151.0,0.00023527,7]
[391608616,1760699459351,-421.80963,0.00023527,7]
[391608617,1760699459363,-151.0,0.00023527,7]
[391608618,1760699459374,-1102.399118,0.00023527,7]
[391608619,1760699459384,-156.321072,0.00023527,7]
[391608620,1760699459395,-151.0,0.00023527,7]
[391608621,1760699459407,-421.80963,0.00023527,7]
[391608622,1760699459419,-1102.399118,0.00023527,7]
[391608623,1760699459431,-169.759,0.00023527,7]
[391608624,1760699459449,-151.0,0.00023528,7]
[391608625,1760699459459,-151.0,0.00023528,7]
[391608626,1760699459470,-151.0,0.00023528,7]
[391608627,1760699459480,-151.0,0.00023528,7]
[391608628,1760699459491,-151.0,0.00023528,7]
[391608629,1760699459501,-151.0,0.00023528,7]
[391608630,1760699459512,-151.0,0.00023528,7]
[391608631,1760699459521,-151.0,0.00023528,7]
[391608632,1760699459532,-151.0,0.00023528,7]
[391608633,1760699459543,-151.0,0.00023528,7]
[391608634,1760699459554,-151.0,0.00023528,7]
[391608635,1760699459564,-151.0,0.00023528,7]
[391608636,1760699459574,-151.0,0.00023528,7]
[391608637,1760699459585,-151.0,0.00023528,7]
[391608638,1760699459595,-151.0,0.00023528,7]
[391608639,1760699459605,-151.0,0.00023528,7]
[391608640,1760699459616,-151.0,0.00023528,7]
[391608641,1760699459626,-151.0,0.00023528,7]
[391608642,1760699459636,-154.884451,0.00023528,7]
[391608643,1760699459647,-151.0,0.00023528,7]
[391608644,1760699459657,-151.0,0.00023528,7]
[391608645,1760699459671,-154.91124,0.00023528,7]
[391608646,1760699459683,-151.0,0.00023528,7]
[391608647,1760699459694,-153.566082,0.00023528,7]
[391608648,1760699459705,-151.0,0.00023528,7]
[391608649,1760699459715,-225.0,0.00023528,7]
[391608650,1760699459726,-225.0,0.00023528,7]
[391608651,1760699459738,-225.0,0.00023528,7]
[391608652,1760699459751,-225.0,0.00023528,7]
[391608653,1760699459761,-151.0,0.00023528,7]
[391608654,1760699459773,-151.0,0.00023528,7]
[391608655,1760699459784,-152.612538,0.00023528,7]
[391608656,1760699459795,-151.0,0.00023528,7]
[391608657,1760699459805,-151.0,0.00023528,7]
[391608658,1760699459816,-151.0,0.00023528,7]
[391608659,1760699459827,-151.0,0.00023528,7]
[391608660,1760699459838,-151.0,0.00023528,7]
[391608661,1760699459848,-151.0,0.00023528,7]
[391608662,1760699459859,-151.0,0.00023528,7]
[391608663,1760699459869,-171.735169,0.00023528,7]
[391608664,1760699459880,-151.0,0.00023528,7]
[391608665,1760699459890,-151.0,0.00023528,7]
[391608666,1760699459900,-151.0,0.00023528,7]
[391608667,1760699459911,-151.0,0.00023528,7]
[391608668,1760699459929,-151.0,0.00023528,7]
[391608669,1760699459939,-151.0,0.00023528,7]
[391608670,1760699459955,-151.0,0.00023528,7]
[391608671,1760699459968,-151.0,0.00023528,7]
[391608672,1760699459979,-151.0,0.00023528,7]
[391608673,1760699459989,-151.0,0.00023528,7]
[391608674,1760699460000,-151.0,0.00023528,7]
[391608675,1760699460011,-151.0,0.00023528,7]
[391608676,1760699460021,-151.0,0.00023528,7]
[391608677,1760699460032,-151.0,0.00023528,7]
[391608678,1760699460042,-300.829181,0.00023528,7]
[391608679,1760699460053,-151.0,0.00023528,7]
[391608680,1760699460064,-151.0,0.00023528,7]
[391608681,1760699460075,-500.0,0.00023573,2]
[391608682,1760699460086,-168.0,0.00023596,2]
[391608683,1760699460097,-151.0,0.000236,7]
[391608684,1760699460107,-152.980179,0.000236,7]
[391608685,1760699460118,-151.0,0.000236,7]
[391608686,1760699460129,-151.0,0.000236,7]
[391608687,1760699460139,-151.0,0.000236,7]
[391608688,1760699460149,-151.0,0.000236,7]
[391608689,1760699460159,-151.0,0.000236,7]
[391608690,1760699460173,-713.533942,0.000236,7]
[391608691,1760699460183,-713.533942,0.000236,7]
[391608692,1760699460194,-713.533942,0.000236,7]
[391608693,1760699460205,-151.0,0.000236,7]
[391608694,1760699460215,-713.533942,0.000236,7]
[391608695,1760699460226,-158.058753,0.000236,7]
[391608696,1760699460236,-5888.0,0.00023611,2]
[391608697,1760699460246,-3702.275,0.00023688,4]
[391608698,1760699460258,-151.111,0.00023688,4]
[391608699,1760699460268,-500.0,0.00023699,2]
[391608700,1760699460279,-15710.77,0.000237,7]
[391608701,1760699460289,-168.0,0.00023794,2]
[391608702,1760699460299,-500.0,0.000238,7]
[391608703,1760699460309,-500.0,0.000238,7]
[391608704,1760699460319,-500.0,0.000238,7]
[391608705,1760699460329,-500.0,0.000238,7]
[391608706,1760699460339,-500.0,0.000238,7]
[391608707,1760699460349,-500.0,0.000238,7]
[391608708,1760699460359,-500.0,0.000238,7]
[391608709,1760699460369,-500.0,0.000238,7]
[391608710,1760699460379,-500.0,0.000238,7]
[391608711,1760699460390,-500.0,0.000238,7]
[391608712,1760699460400,-500.0,0.000238,7]
[391608713,1760699460410,-500.0,0.000238,7]
[391608714,1760699460425,-500.0,0.000238,7]
[391608715,1760699460435,-500.0,0.000238,7]
[391608716,1760699460445,-500.0,0.000238,7]
[391608717,1760699460454,-500.0,0.000238,7]
[391608718,1760699460464,-500.0,0.000238,7]
[391608719,1760699460474,-500.0,0.000238,7]
[391608720,1760699460484,-500.0,0.000238,7]
[391608721,1760699460495,-500.0,0.000238,7]
[391608722,1760699460505,-500.0,0.000238,7]
[391608723,1760699460515,-500.0,0.000238,7]
[391608724,1760699460525,-500.0,0.000238,7]
[391608725,1760699460535,-500.0,0.000238,7]
[391608726,1760699460545,-500.0,0.000238,7]
[391608727,1760699460555,-500.0,0.000238,7]
[391608728,1760699460565,-500.0,0.000238,7]
[391608729,1760699460576,-500.0,0.000238,7]
[391608730,1760699460586,-500.0,0.000238,7]
[391608731,1760699460595,-500.0,0.000238,7]
[391608732,1760699460605,-500.0,0.000238,7]
[391608733,1760699460615,-500.0,0.000238,7]
[391608734,1760699460625,-500.0,0.000238,7]
[391608735,1760699460636,-500.0,0.000238,7]
[391608736,1760699460645,-500.0,0.000238,7]
[391608737,1760699460655,-500.0,0.000238,7]
[391608738,1760699460669,-500.77,0.000238,7]
[391608739,1760699460683,-500.0,0.000238,7]
[391608740,1760699460693,-500.0,0.000238,7]
[391608741,1760699460703,-500.0,0.000238,7]
[391608742,1760699460713,-500.0,0.000238,7]
[391608743,1760699460723,-500.0,0.000238,7]
[391608744,1760699460734,-500.0,0.000238,7]
[391608745,1760699460745,-500.0,0.000238,7]
[391608746,1760699460757,-500.0,0.000238,7]
[391608747,1760699460767,-500.0,0.000238,7]
[391608748,1760699460777,-500.0,0.000238,7]
[391608749,1760699460787,-500.0,0.000238,7]
[391608750,1760699460797,-231.6,0.000238,7]
[391608751,1760699460807,-500.0,0.000238,7]
[391608752,1760699460817,-58590.26023144,0.000238,2]
[391608753,1760699460826,-150.0,0.00023835,2]
[391608754,1760699460837,-166.34,0.00023836,2]
[391608755,1760699460847,-3127.17307432,0.00023862,2]
[391608756,1760699460968,-840.12,0.00023875,2]
[391608757,1760699460979,-1000.0,0.00023896,2]
[391608758,1760699460989,-387.440697,0.00023906,7]
[391608759,1760699460999,-387.440697,0.00023906,7]
[391608760,1760699461009,-387.440697,0.00023906,7]
[391608761,1760699461019,-387.440697,0.00023906,7]
[391608762,1760699461029,-1874.856217,0.00023906,7]
[391608763,1760699461038,-151.0,0.00023906,7]
[391608764,1760699461048,-151.0,0.00023906,7]
[391608765,1760699461058,-193.969276,0.00023906,7]
[391608766,1760699461068,-1874.856217,0.00023906,7]
[391608767,1760699461078,-151.0,0.00023906,7]
[391608768,1760699461087,-1600.42274,0.00023906,7]
[391608769,1760699461098,-193.969276,0.00023906,7]
[391608770,1760699461107,-151.0,0.00023906,7]
[391608771,1760699461117,-151.0,0.00023906,7]
[391608772,1760699461126,-1874.856217,0.00023906,7]
[391608773,1760699461136,-151.610122,0.00023906,7]
[391608774,1760699461146,-1600.42274,0.00023906,7]
[391608775,1760699461156,-193.969276,0.00023906,7]
[391608776,1760699461166,-184.835516,0.00023906,7]
[391608777,1760699461179,-1874.856217,0.00023906,7]
[391608778,1760699461189,-1600.42274,0.00023906,7]
[391608779,1760699461199,-151.0,0.00023906,7]
[391608780,1760699461209,-193.969276,0.00023906,7]
[391608781,1760699461219,-1600.42274,0.00023906,7]
[391608782,1760699461229,-151.0,0.00023906,7]
[391608783,1760699461239,-151.0,0.00023906,7]
[391608784,1760699461250,-151.0,0.00023906,7]
[391608785,1760699461260,-239.618751,0.00023906,7]
[391608786,1760699461270,-224.970859,0.00023906,7]
[391608787,1760699461280,-151.0,0.00023906,7]
[391608788,1760699461290,-595.838009,0.00023906,7]
[391608789,1760699461300,-224.970859,0.00023906,7]
[391608790,1760699461310,-595.838009,0.00023906,7]
[391608791,1760699461319,-2423.388291,0.00023906,7]
[391608792,1760699461329,-224.970859,0.00023906,7]
[391608793,1760699461339,-595.838009,0.00023906,7]
[391608794,1760699461349,-621.859419,0.00023906,7]
[391608795,1760699461359,-2423.388291,0.00023906,7]
[391608796,1760699461369,-263.831277,0.00023906,7]
[391608797,1760699461380,-224.970859,0.00023906,7]
[391608798,1760699461389,-2423.388291,0.00023906,7]
[391608799,1760699461399,-263.831277,0.00023906,7]
[391608800,1760699461410,-621.859419,0.00023906,7]
[391608801,1760699461423,-595.838009,0.00023906,7]
[391608802,1760699461434,-151.0,0.00023906,7]
[391608803,1760699461445,-211.973252,0.00023906,7]
[391608804,1760699461455,-2423.388291,0.00023906,7]
[391608805,1760699461464,-263.831277,0.00023906,7]
[391608806,1760699461474,-621.859419,0.00023906,7]
[391608807,1760699461484,-151.0,0.00023906,7]
[391608808,1760699461494,-211.973252,0.00023906,7]
[391608809,1760699461504,-263.831277,0.00023906,7]
[391608810,1760699461514,-621.859419,0.00023906,7]
[391608811,1760699461523,-151.0,0.00023906,7]
[391608812,1760699461534,-211.973252,0.00023906,7]
[391608813,1760699461544,-151.0,0.00023906,7]
[391608814,1760699461555,-211.973252,0.00023906,7]
[391608815,1760699461565,-151.0,0.00023906,7]
[391608816,1760699461574,-151.0,0.00023906,7]
[391608817,1760699461584,-479.157116,0.00023906,7]
[391608818,1760699461594,-353.890508,0.00023906,7]
[391608819,1760699461603,-154.118841,0.00023906,7]
[391608820,1760699461612,-479.157116,0.00023906,7]
[391608821,1760699461622,-353.890508,0.00023906,7]
[391608822,1760699461632,-353.890508,0.00023906,7]
[391608823,1760699461642,-479.157116,0.00023906,7]
[391608824,1760699461652,-479.157116,0.00023906,7]
[391608825,1760699461662,-353.890508,0.00023906,7]
[391608826,1760699461675,-151.0,0.00023906,7]
[391608827,1760699461687,-151.0,0.00023906,7]
[391608828,1760699461697,-181.570556,0.00023906,7]
[391608829,1760699461707,-190.719475,0.00023906,7]
[391608830,1760699461718,-151.0,0.00023906,7]
[391608831,1760699461730,-157.043092,0.00023906,7]
[391608832,1760699461740,-181.570556,0.00023906,7]
[391608833,1760699461751,-190.719475,0.00023906,7]
[391608834,1760699461761,-157.043092,0.00023906,7]
[391608835,1760699461771,-181.570556,0.00023906,7]
[391608836,1760699461781,-190.719475,0.00023906,7]
[391608837,1760699461790,-157.043092,0.00023906,7]
[391608838,1760699461801,-181.570556,0.00023906,7]
[391608839,1760699461812,-190.719475,0.00023906,7]
[391608840,1760699461821,-157.043092,0.00023906,7]
[391608841,1760699461832,-253.367917,0.00023906,7]
[391608842,1760699461842,-253.367917,0.00023906,7]
[391608843,1760699461852,-253.367917,0.00023906,7]
[391608844,1760699461862,-253.367917,0.00023906,7]
[391608845,1760699461872,-150.0,0.00023927,2]
[391608846,1760699461882,-1000.0,0.00023961,2]
[391608847,1760699461892,-1000.0,0.00023969,4]
[391608848,1760699461902,-150.0,0.00023988,2]
[391608849,1760699461912,-3653.0,0.00024,2]
[391608850,1760699461926,-1000.0,0.00024,30]
[391608851,1760699461936,-1000.0,0.00024,30]
[391608852,1760699461947,-1000.0,0.00024,30]
[391608853,1760699461957,-1000.0,0.00024,30]
[391608854,1760699461968,-1000.0,0.00024,30]
[391608855,1760699461978,-1000.0,0.00024,30]
[391608856,1760699461989,-1000.0,0.00024,30]
[391608857,1760699461999,-500.0,0.00024001,2]
[391608858,1760699462009,-500.0,0.00024001,2]
[391608859,1760699462020,-27009.49974667,0.00024002,2]
[391608869,1760700102026,-152.75744938,0.00014882,2]
[391608870,1760700102051,-300.0,0.00014887,2]
[391608871,1760700102074,-177.43567532,0.00014898,3]
[391608872,1760700102096,-151.35613894,0.00014899,2]
[391608897,1760700235643,500.0,0.00027397,120]
[391608901,1760700333891,174.72531798,0.000149,2]
[391608902,1760700355231,410.09671403,0.000135,2]
[391608906,1760700409723,696.69494395,0.000149,2]
[391608907,1760700415800,170.22,0.00013428,2]
[391608908,1760700440341,666.0,0.00014518,3]
[391608909,1760700480660,163.06014578,0.000149,2]
[391608910,1760700493256,8929.40668453,0.000149,2]
[391608913,1760700535988,327.18899278,0.000149,2]
[391608914,1760700605554,2607.41,0.00014744,2]
[391608915,1760700617151,194.94725814,0.000149,2]
[391608932,1760700632317,-696.69494391,0.00014905,2]
[391608934,1760700632328,-2000.0,0.00014908,3]
[391608936,1760700632337,-696.69494391,0.0001491,2]
[391608937,1760700632347,-696.69494391,0.00014916,2]
[391608938,1760700632357,-302.61164636,0.00014921,2]
[391608939,1760700632369,-394.08329755,0.00014921,2]
[391608940,1760700632379,-696.69494391,0.00014926,2]
[391608941,1760700632388,-696.69494391,0.00014931,2]
[391608942,1760700632397,-696.69494391,0.00014937,2]
[391608943,1760700632408,-696.69494391,0.00014942,2]
[391608944,1760700632419,-1200.0,0.00014946,2]
[391608945,1760700632429,-696.69494391,0.00014947,2]
[391608946,1760700632439,-300.0,0.00014989,2]
[391608947,1760700632449,-300.0,0.00014989,2]
[391608948,1760700632458,-274.79673939,0.0001499,2]
[391608949,1760700632468,-151.0,0.00014991,2]
[391608950,1760700632479,-151.0,0.00014991,2]
[391608951,1760700632488,-151.0,0.00014991,2]
[391608952,1760700632498,-151.0,0.00014991,2]
[391608953,1760700632509,-151.0,0.00014991,2]
[391608954,1760700632519,-169.12693625,0.00014991,2]
[391608955,1760700632528,-200.0,0.00014991,2]
[391608956,1760700632538,-200.0,0.00014991,2]
[391608957,1760700632548,-200.0,0.00014991,2]
[391608958,1760700632560,-150.0,0.00014998,2]
[391608959,1760700632570,-437.01662785,0.00014999,2]
[391608960,1760700632580,-500.0,0.00014999,2]
[391608961,1760700632590,-500.0,0.00014999,2]
[391608962,1760700632599,-500.0,0.00014999,2]
[391608963,1760700632610,-589.19274535,0.00014999,2]
[391608964,1760700632619,-166.68897115,0.00014999,2]
[391608965,1760700632629,-426.36699734,0.00014999,2]
[391608966,1760700632639,-346.30400276,0.00014999,2]
[391608967,1760700632649,-500.0,0.00014999,2]
[391608969,1760700632659,-500.0,0.00014999,2]
[391608971,1760700632669,-335.06775628,0.00014999,2]
[391608973,1760700632678,-415.56997744,0.00014999,2]
[391608975,1760700632690,-250.43002256,0.00014999,2]
[391608977,1760700632700,-433.67248169,0.00015,2]
[391608984,1760700632760,-421.37,0.00015,2]
[391608994,1760700632820,-51391.62683734,0.00015,2]
[391608996,1760700632831,-666.0,0.00015,2]
[391608998,1760700632843,-1058.93672585,0.00015,2]
[391609000,1760700632854,-544.33663411,0.00015,2]
[391609003,1760700632866,-645.73309424,0.00015,2]
[391609005,1760700632881,-32560.83911861,0.00015,2]
[391609007,1760700632893,-54007.44053239,0.00015,2]
[391609010,1760700632903,-8199.35863603,0.00015,2]
[391609012,1760700632914,-803.51,0.00015,2]
[391609014,1760700632926,-53194.29246046,0.00015,2]
[391609017,1760700632946,-627.68208494,0.00015,2]
[391609186,1760700638239,-1150.0,0.00015,2]
[391609187,1760700638300,-2341.22049259,0.00015,2]
[391609188,1760700638315,-442.50981748,0.00015,2]
[391609189,1760700638437,-577.36270531,0.00015,2]
[391609190,1760700638484,4878.70067917,0.000149,2]
[391609191,1760700638503,-1340.1178464,0.000149,2]
[391609192,1760700638513,-14608.8821536,0.00015,2]
[391609195,1760700638534,-999.92,0.00015,2]
[391609196,1760700638547,-5868.7590974,0.00015,2]
[391609197,1760700638559,-3316.13927406,0.00015,2]
[391609382,1760700640545,-554.539431,0.00015,2]
[391609383,1760700640558,-307656.46384713,0.00015,2]
[391609384,1760700640572,-3830825.44032202,0.00015,2]
[391609385,1760700640584,-822.10000006,0.00015,2]
[391609387,1760700640596,-3102.7500236,0.00015,2]
[391609390,1760700640608,-5466.75000009,0.00015,2]
[391609392,1760700640620,-3813.7,0.00015,2]
[391609396,1760700640644,-1378.913203,0.00015,2]
[391609420,1760700640872,-824.26052605,0.00015,2]
[391609441,1760700643422,-351.9117546,0.00015,2]
[391609442,1760700643475,-106195.0,0.00015,2]
[391609446,1760700646404,-14524.7474496,0.00015,2]
[391609447,1760700646418,-495.9299997,0.00015,2]
[391609448,1760700646458,-3183.62181859,0.00015,2]
[391609449,1760700646516,-14184.62676995,0.00015,2]
[391609450,1760700646528,-16853.4908707,0.00015,2]
[391609451,1760700646540,-21780.5,0.00015,2]
[391609452,1760700646575,-485.51586808,0.00015,2]
[391609464,1760700692727,230.175,0.000147,2]
[391609465,1760700692768,3809.932,0.000147,2]
[391609466,1760700743127,748.74,0.00024813,120]
[391609479,1760701138330,200.0,0.0001413,2]
[391609480,1760701148076,291.81,0.00014129,2]
[391609481,1760701162831,500.0,0.00027397,120]
[391609482,1760701200972,3065.6,0.00014156,2]
[391609484,1760701280965,8877.21,0.00014167,2]
[391609485,1760701290169,851.39,0.00014152,2]
[391609486,1760701426496,610.0,0.00014112,2]
[391609487,1760701491756,500.0,0.00014111,2]
[391609491,1760701498814,471.04,0.00013699,2]
[391609492,1760701553747,152.71301792,0.000147,2]
[391609494,1760701695198,-1475.4059,0.00014808,2]
[391609495,1760701695224,-3372.04940422,0.00014811,3]
[391609496,1760701695247,-152.54469578,0.00014814,2]
[391609497,1760701761571,150.0,0.00014179,2]
[391609501,1760701831467,-200.0,0.00014859,2]
[391609502,1760701831485,-300.0,0.00014898,2]
[391609503,1760701831516,-1200.0,0.00014898,2]
[391609504,1760701831529,-3078.624,0.00014899,2]
[391609505,1760701831541,-184.14,0.00014899,2]
[391609506,1760701831553,-150.0,0.00014899,2]
[391609507,1760701831569,-546.73973183,0.000149,2]
[391609508,1760701831581,-12.35801868,0.000149,2]
[391609509,1760701831597,-573.54886815,0.000149,2]
[391609510,1760701831610,-315.17207874,0.000149,2]
[391609511,1760701831622,-14422.48091158,0.000149,2]
[391609512,1760701831638,-3496.3262472,0.000149,2]
[391609513,1760701831655,-3643.81976217,0.000149,2]
[391609514,1760701831669,-171.3880409,0.000149,2]
[391609515,1760701831683,-218.12599518,0.000149,2]
[391609516,1760701831697,-5739.82364154,0.00014959,2]
[391609517,1760701831731,-694.63958201,0.00014959,2]
[391609519,1760701831748,-3980.53677645,0.00014959,2]
[391609521,1760701831762,-11278.0,0.00014959,2]
[391609522,1760701831777,-500.0,0.00014973,2]
[391609523,1760701831790,-177.43322911,0.0001499,2]
[391609525,1760701831804,-177.43322911,0.0001499,2]
[391609526,1760701831819,-177.43322911,0.0001499,2]
[391609527,1760701831833,-203.15143405,0.00014991,2]
[391609528,1760701831848,-177.89685993,0.00014991,2]
[391609529,1760701831861,-1212.38783948,0.00014996,2]
[391609530,1760701831875,-151.0,0.00014997,2]
[391609531,1760701831889,-1191.51178033,0.00014999,5]
[391609532,1760701831903,-182.0521011,0.00014999,2]
[391609533,1760701831916,-500.0,0.00014999,2]
[391609534,1760701831930,-262.88520359,0.00014999,2]
[391609535,1760701831943,-194.35682538,0.00014999,2]
[391609536,1760701831957,-500.0,0.00014999,2]
[391609537,1760701831970,-500.0,0.00014999,2]
[391609538,1760701831983,-500.0,0.00014999,2]
[391609539,1760701831996,-500.0,0.00014999,2]
[391609540,1760701832009,-353.11630141,0.00014999,2]
[391609541,1760701832022,-500.0,0.00014999,2]
[391609542,1760701832035,-319.17187521,0.00014999,2]
[391609543,1760701832052,-500.0,0.00014999,2]
[391609544,1760701832067,-500.0,0.00014999,2]
[391609545,1760701832080,-500.0,0.00014999,2]
[391609546,1760701832092,-500.0,0.00014999,2]
[391609547,1760701832104,-500.0,0.00014999,2]
[391609548,1760701832117,-480.04866362,0.00014999,2]
[391609549,1760701832130,-500.0,0.00014999,2]
[391609550,1760701832144,-500.0,0.00014999,2]
[391609551,1760701832157,-500.0,0.00014999,2]
[391609552,1760701832170,-500.0,0.00014999,2]
[391609553,1760701832183,-500.0,0.00014999,2]
[391609554,1760701832197,-500.0,0.00014999,2]
[391609555,1760701832210,-174.395763,0.00014999,2]
[391609556,1760701832223,-500.0,0.00014999,2]
[391609557,1760701832236,-500.0,0.00014999,2]
[391609558,1760701832247,-500.0,0.00014999,2]
[391609559,1760701832259,-500.0,0.00014999,2]
[391609560,1760701832272,-500.0,0.00014999,2]
[391609561,1760701832285,-500.0,0.00014999,2]
[391609562,1760701832297,-500.0,0.00014999,2]
[391609563,1760701832314,-500.0,0.00014999,2]
[391609564,1760701832326,-500.0,0.00014999,2]
[391609565,1760701832339,-500.0,0.00014999,2]
[391609566,1760701832351,-500.0,0.00014999,2]
[391609567,1760701832364,-500.0,0.00014999,2]
[391609568,1760701832377,-500.0,0.00014999,2]
[391609569,1760701832390,-500.0,0.00014999,2]
[391609570,1760701832406,-200.49145803,0.00014999,2]
[391609571,1760701832419,-500.0,0.00014999,2]
[391609572,1760701832433,-272.85009093,0.00014999,5]
[391609573,1760701832447,-150.0,0.00014999,5]
[391609574,1760701832460,-1000.0,0.00014999,2]
[391609575,1760701832472,-517.93287247,0.00014999,2]
[391609576,1760701832486,-1813.04,0.00014999,2]
[391609577,1760701832499,-1813.04,0.00014999,2]
[391609578,1760701832514,-1813.04,0.00014999,2]
[391609579,1760701832527,-1813.04,0.00014999,2]
[391609580,1760701832539,-1813.04,0.00014999,2]
[391609581,1760701832551,-1813.04,0.00014999,2]
[391609582,1760701832565,-1813.04,0.00014999,2]
[391609583,1760701832577,-1813.04,0.00014999,2]
[391609584,1760701832589,-1813.04,0.00014999,2]
[391609585,1760701832601,-1813.04,0.00014999,2]
[391609586,1760701832614,-1813.04,0.00014999,2]
[391609587,1760701832626,-1813.04,0.00014999,2]
[391609588,1760701832638,-1813.04,0.00014999,2]
[391609589,1760701832650,-1813.04,0.00014999,2]
[391609590,1760701832663,-1813.04,0.00014999,2]
[391609591,1760701832675,-1813.04,0.00014999,2]
[391609592,1760701832688,-1813.04,0.00014999,2]
[391609593,1760701832700,-1813.04,0.00014999,2]
[391609594,1760701832712,-1813.04,0.00014999,2]
[391609595,1760701832725,-1813.04,0.00014999,2]
[391609596,1760701832737,-1813.04,0.00014999,2]
[391609597,1760701832753,-1813.04,0.00014999,2]